[Event "Titled Tuesday Blitz May 25 2021"]
[White "Acor, Corey"]
[Black "Miszler, Levente"]
[WhiteFideId "2024861"]
[BlackFideId "763276"]
[WhiteElo "2808"]
[BlackElo "1967"]
[Result "1-0"]
[Round "09"]
[TimeControl "180+1"]
[Date "2021.05.25"]
[WhiteClock "0:00:10"]
[BlackClock "0:00:12"]

1. e4 {[%clk 0:03:00]}  e6 {[%clk 0:02:59]} 2. d3 {[%clk 0:03:00]}  d5 {[%clk 0:02:58]} 3. Nd2 {[%clk 0:03:01]}  Nf6 {[%clk 0:02:58]} 4. g3 {[%clk 0:02:58]}  Be7 {[%clk 0:02:57]} 5. Bg2 {[%clk 0:02:58]}  O-O {[%clk 0:02:58]} 6. Ngf3 {[%clk 0:02:57]}  c5 {[%clk 0:02:58]} 7. O-O {[%clk 0:02:48]}  Nc6 {[%clk 0:02:57]} 8. b3 {[%clk 0:02:46]}  b5 {[%clk 0:02:49]} 9. exd5 {[%clk 0:02:44]}  exd5 {[%clk 0:02:46]} 10. Re1 {[%clk 0:02:40]}  Bb7 {[%clk 0:02:40]} 11. Bb2 {[%clk 0:02:35]}  Re8 {[%clk 0:02:31]} 12. a4 {[%clk 0:02:29]}  a6 {[%clk 0:02:30]} 13. h3 {[%clk 0:02:20]}  Bd6 {[%clk 0:02:26]} 14. axb5 {[%clk 0:02:15]}  axb5 {[%clk 0:02:26]} 15. Rxa8 {[%clk 0:02:14]}  Qxa8 {[%clk 0:02:27]} 16. Bxf6 {[%clk 0:02:07]}  gxf6 {[%clk 0:02:25]} 17. Rxe8+ {[%clk 0:01:58]}  Qxe8 {[%clk 0:02:26]} 18. Nf1 {[%clk 0:01:50]}  Ne5 {[%clk 0:02:21]} 19. Nh4 {[%clk 0:01:47]}  Qd7 {[%clk 0:02:13]} 20. Qh5 {[%clk 0:01:32]}  Ng6 {[%clk 0:02:02]} 21. Nf5 {[%clk 0:01:20]}  Bf8 {[%clk 0:02:00]} 22. N1e3 {[%clk 0:01:07]}  Ne5 {[%clk 0:01:33]} 23. f4 {[%clk 0:00:49]}  d4 {[%clk 0:01:21]} 24. fxe5 {[%clk 0:00:33]}  dxe3 {[%clk 0:01:19]} 25. Bxb7 {[%clk 0:00:33]}  Qxb7 {[%clk 0:01:05]} 26. exf6 {[%clk 0:00:33]}  Qa8 {[%clk 0:00:47]} 27. Nxe3 {[%clk 0:00:30]}  Qa1+ {[%clk 0:00:46]} 28. Kf2 {[%clk 0:00:30]}  Qxf6+ {[%clk 0:00:46]} 29. Qf3 {[%clk 0:00:28]}  Qc3 {[%clk 0:00:42]} 30. Qe2 {[%clk 0:00:22]}  Bh6 {[%clk 0:00:38]} 31. Nf5 {[%clk 0:00:21]}  Bg7 {[%clk 0:00:29]} 32. Qe8+ {[%clk 0:00:16]}  Bf8 {[%clk 0:00:30]} 33. Nh6+ {[%clk 0:00:13]}  Kg7 {[%clk 0:00:27]} 34. Qxf7+ {[%clk 0:00:14]}  Kxh6 {[%clk 0:00:26]} 35. Qxf8+ {[%clk 0:00:15]}  Kg6 {[%clk 0:00:27]} 36. Qe8+ {[%clk 0:00:11]}  Kg7 {[%clk 0:00:25]} 37. Qe2 {[%clk 0:00:12]}  Qd4+ {[%clk 0:00:23]} 38. Kg2 {[%clk 0:00:12]}  b4 {[%clk 0:00:20]} 39. Qf2 {[%clk 0:00:12]}  Qc3 {[%clk 0:00:20]} 40. g4 {[%clk 0:00:12]}  Kg6 {[%clk 0:00:20]} 41. Kg3 {[%clk 0:00:08]}  Qe5+ {[%clk 0:00:19]} 42. Qf4 {[%clk 0:00:09]}  Qe1+ {[%clk 0:00:19]} 43. Kg2 {[%clk 0:00:09]}  Qe2+ {[%clk 0:00:19]} 44. Qf2 {[%clk 0:00:10]}  Qd1 {[%clk 0:00:16]} 45. Qxc5 {[%clk 0:00:09]}  Qd2+ {[%clk 0:00:14]} 46. Qf2 {[%clk 0:00:10]}  Qc3 {[%clk 0:00:15]} 47. d4 {[%clk 0:00:09]}  Qc6+ {[%clk 0:00:15]} 48. Kg3 {[%clk 0:00:08]}  Qd6+ {[%clk 0:00:15]} 49. Kf3 {[%clk 0:00:09]}  Qd5+ {[%clk 0:00:15]} 50. Ke3 {[%clk 0:00:09]}  Qe6+ {[%clk 0:00:16]} 51. Kd3 {[%clk 0:00:09]}  Qa6+ {[%clk 0:00:16]} 52. Kd2 {[%clk 0:00:09]}  Qd6 {[%clk 0:00:15]} 53. Qf5+ {[%clk 0:00:09]}  Kh6 {[%clk 0:00:12]} 54. Qh5+ {[%clk 0:00:09]}  Kg7 {[%clk 0:00:12]} 55. Qe5+ {[%clk 0:00:10]} 1-0


[Site "https://www.chess.com"]

[Event "Titled Tuesday Blitz May 25 2021"]
[White "Alavkin, Arseny"]
[Black "Martin Carmona, Gaston Manuel"]
[WhiteFideId "4120612"]
[BlackFideId "22284567"]
[WhiteElo "2414"]
[BlackElo "2144"]
[Result "0-1"]
[Round "09"]
[TimeControl "180+1"]
[Date "2021.05.25"]
[WhiteClock "0:01:47"]
[BlackClock "0:00:17"]

1. e4 {[%clk 0:03:00]}  c5 {[%clk 0:02:59]} 2. Nf3 {[%clk 0:03:00]}  d6 {[%clk 0:02:59]} 3. Nc3 {[%clk 0:02:59]}  Nf6 {[%clk 0:02:59]} 4. d4 {[%clk 0:02:59]}  cxd4 {[%clk 0:03:00]} 5. Nxd4 {[%clk 0:03:00]}  g6 {[%clk 0:03:01]} 6. Be3 {[%clk 0:03:00]}  Bg7 {[%clk 0:03:02]} 7. Bc4 {[%clk 0:03:00]}  Nc6 {[%clk 0:03:01]} 8. f3 {[%clk 0:03:00]}  O-O {[%clk 0:03:00]} 9. Qd2 {[%clk 0:03:00]}  Bd7 {[%clk 0:03:01]} 10. h4 {[%clk 0:02:59]}  Rc8 {[%clk 0:02:58]} 11. Bb3 {[%clk 0:02:59]}  h5 {[%clk 0:02:58]} 12. O-O-O {[%clk 0:02:58]}  Ne5 {[%clk 0:02:58]} 13. Kb1 {[%clk 0:02:58]}  Nc4 {[%clk 0:02:35]} 14. Bxc4 {[%clk 0:02:58]}  Rxc4 {[%clk 0:02:36]} 15. Bg5 {[%clk 0:02:58]}  Nxe4 {[%clk 0:02:23]} 16. Nxe4 {[%clk 0:02:51]}  Rxd4 {[%clk 0:02:22]} 17. Qe3 {[%clk 0:02:46]}  Qb6 {[%clk 0:02:09]} 18. Rxd4 {[%clk 0:02:44]}  Bxd4 {[%clk 0:02:10]} 19. Qb3 {[%clk 0:02:45]}  Qxb3 {[%clk 0:02:07]} 20. axb3 {[%clk 0:02:46]}  f6 {[%clk 0:02:04]} 21. Bd2 {[%clk 0:02:45]}  Kf7 {[%clk 0:01:59]} 22. Rf1 {[%clk 0:02:46]}  Rc8 {[%clk 0:01:55]} 23. Re1 {[%clk 0:02:46]}  Bf5 {[%clk 0:01:53]} 24. c3 {[%clk 0:02:45]}  Bf2 {[%clk 0:01:51]} 25. Re2 {[%clk 0:02:45]}  Bxh4 {[%clk 0:01:46]} 26. Ka2 {[%clk 0:02:45]}  d5 {[%clk 0:01:41]} 27. Nf2 {[%clk 0:02:43]}  Bg3 {[%clk 0:01:36]} 28. Be3 {[%clk 0:02:39]}  b6 {[%clk 0:01:33]} 29. b4 {[%clk 0:02:39]}  Bd6 {[%clk 0:01:31]} 30. g4 {[%clk 0:02:37]}  Be6 {[%clk 0:01:23]} 31. Bd4 {[%clk 0:02:36]}  h4 {[%clk 0:01:22]} 32. Kb1 {[%clk 0:02:34]}  g5 {[%clk 0:01:21]} 33. Kc1 {[%clk 0:02:33]}  Bd7 {[%clk 0:01:20]} 34. Nh3 {[%clk 0:02:31]}  e5 {[%clk 0:01:19]} 35. Bf2 {[%clk 0:02:28]}  d4 {[%clk 0:01:18]} 36. Kd2 {[%clk 0:02:28]}  dxc3+ {[%clk 0:01:13]} 37. bxc3 {[%clk 0:02:29]}  Bc6 {[%clk 0:01:13]} 38. Ng1 {[%clk 0:02:28]}  h3 {[%clk 0:01:10]} 39. Bg3 {[%clk 0:02:28]}  a5 {[%clk 0:01:03]} 40. Nxh3 {[%clk 0:02:21]}  Bxf3 {[%clk 0:01:00]} 41. Rf2 {[%clk 0:02:21]}  Bxg4 {[%clk 0:01:00]} 42. Nxg5+ {[%clk 0:02:21]}  Kg6 {[%clk 0:00:56]} 43. Ne4 {[%clk 0:02:22]}  Be7 {[%clk 0:00:56]} 44. Bh4 {[%clk 0:02:18]}  Rc6 {[%clk 0:00:51]} 45. b5 {[%clk 0:02:12]}  Re6 {[%clk 0:00:48]} 46. c4 {[%clk 0:02:13]}  f5 {[%clk 0:00:44]} 47. Bxe7 {[%clk 0:02:12]}  Rxe7 {[%clk 0:00:45]} 48. Nc3 {[%clk 0:02:13]}  Rd7+ {[%clk 0:00:35]} 49. Nd5 {[%clk 0:02:13]}  Rd6 {[%clk 0:00:33]} 50. Kc3 {[%clk 0:02:10]}  f4 {[%clk 0:00:30]} 51. Kd3 {[%clk 0:02:04]}  Bf5+ {[%clk 0:00:29]} 52. Kc3 {[%clk 0:02:04]}  Kg5 {[%clk 0:00:26]} 53. Rb2 {[%clk 0:02:01]}  e4 {[%clk 0:00:24]} 54. Nxb6 {[%clk 0:01:59]}  Rxb6 {[%clk 0:00:24]} 55. c5 {[%clk 0:02:00]}  Rb8 {[%clk 0:00:23]} 56. c6 {[%clk 0:02:00]}  Rc8 {[%clk 0:00:20]} 57. Kc4 {[%clk 0:01:58]}  e3 {[%clk 0:00:20]} 58. Re2 {[%clk 0:01:56]}  Kg4 {[%clk 0:00:17]} 59. Kc5 {[%clk 0:01:56]}  Be4 {[%clk 0:00:16]} 60. Kd6 {[%clk 0:01:49]}  Kf3 {[%clk 0:00:16]} 61. Rb2 {[%clk 0:01:46]}  e2 {[%clk 0:00:15]} 62. Rxe2 {[%clk 0:01:47]}  Kxe2 {[%clk 0:00:16]} 63. Kd7 {[%clk 0:01:48]}  Rxc6 {[%clk 0:00:16]} 64. bxc6 {[%clk 0:01:47]}  Bxc6+ {[%clk 0:00:17]} 0-1


[Site "https://www.chess.com"]

[Event "Titled Tuesday Blitz May 25 2021"]
[White "Annaberdiyev, Babageldi"]
[Black "Taboas Rodriguez, Daniel"]
[WhiteFideId "14000385"]
[BlackFideId "2208466"]
[WhiteElo "2743"]
[BlackElo "2560"]
[Result "1-0"]
[Round "09"]
[TimeControl "180+1"]
[Date "2021.05.25"]
[WhiteClock "0:01:56"]
[BlackClock "0:00:48"]

1. e4 {[%clk 0:03:00]}  d5 {[%clk 0:02:59]} 2. exd5 {[%clk 0:03:00]}  Nf6 {[%clk 0:02:59]} 3. d4 {[%clk 0:02:59]}  Bg4 {[%clk 0:02:59]} 4. f3 {[%clk 0:02:57]}  Bf5 {[%clk 0:02:59]} 5. g4 {[%clk 0:02:57]}  Bg6 {[%clk 0:02:59]} 6. c4 {[%clk 0:02:56]}  e6 {[%clk 0:02:59]} 7. Nc3 {[%clk 0:02:55]}  exd5 {[%clk 0:02:59]} 8. h4 {[%clk 0:02:52]}  Bd6 {[%clk 0:02:46]} 9. Qe2+ {[%clk 0:02:49]}  Qe7 {[%clk 0:02:34]} 10. Qxe7+ {[%clk 0:02:45]}  Bxe7 {[%clk 0:02:34]} 11. h5 {[%clk 0:02:46]}  Bc2 {[%clk 0:02:25]} 12. Rh2 {[%clk 0:02:46]}  Nc6 {[%clk 0:02:23]} 13. Rxc2 {[%clk 0:02:42]}  Nxd4 {[%clk 0:02:23]} 14. Rd2 {[%clk 0:02:40]}  Bc5 {[%clk 0:02:21]} 15. Kd1 {[%clk 0:02:37]}  O-O-O {[%clk 0:02:14]} 16. Na4 {[%clk 0:02:34]}  Nb3 {[%clk 0:02:03]} 17. axb3 {[%clk 0:02:34]}  Bxg1 {[%clk 0:02:03]} 18. Kc2 {[%clk 0:02:29]}  Rhe8 {[%clk 0:01:53]} 19. Rd1 {[%clk 0:02:27]}  dxc4 {[%clk 0:01:37]} 20. Rxd8+ {[%clk 0:02:20]}  Kxd8 {[%clk 0:01:30]} 21. bxc4 {[%clk 0:02:21]}  Re1 {[%clk 0:01:26]} 22. Bd3 {[%clk 0:02:20]}  Ke8 {[%clk 0:01:06]} 23. Nc3 {[%clk 0:02:18]}  Nd7 {[%clk 0:01:04]} 24. Ne2 {[%clk 0:02:08]}  Nc5 {[%clk 0:00:54]} 25. Rxa7 {[%clk 0:02:00]}  Nxd3 {[%clk 0:00:48]} 26. Ra8+ {[%clk 0:02:00]}  Kd7 {[%clk 0:00:49]} 27. Kxd3 {[%clk 0:02:01]}  Rf1 {[%clk 0:00:48]} 28. Nxg1 {[%clk 0:01:56]} 1-0


[Site "https://www.chess.com"]

[Event "Titled Tuesday Blitz May 25 2021"]
[White "Aravindh, Chithambaram VR."]
[Black "Demin, Vladimir"]
[WhiteFideId "5072786"]
[BlackFideId "4167457"]
[WhiteElo "2864"]
[BlackElo "2570"]
[Result "1-0"]
[Round "09"]
[TimeControl "180+1"]
[Date "2021.05.25"]
[WhiteClock "0:02:30"]
[BlackClock "0:01:16"]

1. Nf3 {[%clk 0:03:00]}  d5 {[%clk 0:02:52]} 2. b3 {[%clk 0:03:01]}  Bg4 {[%clk 0:02:49]} 3. Bb2 {[%clk 0:03:01]}  Nd7 {[%clk 0:02:48]} 4. d4 {[%clk 0:03:01]}  Ngf6 {[%clk 0:02:47]} 5. Nbd2 {[%clk 0:03:01]}  e6 {[%clk 0:02:44]} 6. e3 {[%clk 0:03:00]}  c6 {[%clk 0:02:44]} 7. Be2 {[%clk 0:02:59]}  Be7 {[%clk 0:02:31]} 8. O-O {[%clk 0:02:57]}  O-O {[%clk 0:02:30]} 9. c4 {[%clk 0:02:54]}  h6 {[%clk 0:02:26]} 10. Ne5 {[%clk 0:02:44]}  Nxe5 {[%clk 0:02:20]} 11. dxe5 {[%clk 0:02:43]}  Bxe2 {[%clk 0:02:21]} 12. Qxe2 {[%clk 0:02:44]}  Nd7 {[%clk 0:02:20]} 13. f4 {[%clk 0:02:43]}  f6 {[%clk 0:02:13]} 14. Qg4 {[%clk 0:02:39]}  Nc5 {[%clk 0:02:03]} 15. b4 {[%clk 0:02:32]}  Nd3 {[%clk 0:01:51]} 16. Qxe6+ {[%clk 0:02:32]}  Kh8 {[%clk 0:01:51]} 17. Bc3 {[%clk 0:02:29]}  Bxb4 {[%clk 0:01:45]} 18. Bxb4 {[%clk 0:02:30]}  Nxb4 {[%clk 0:01:46]} 19. Nf3 {[%clk 0:02:30]}  Nc2 {[%clk 0:01:30]} 20. Rab1 {[%clk 0:02:30]}  Nxe3 {[%clk 0:01:28]} 21. exf6 {[%clk 0:02:30]}  Nxf1 {[%clk 0:01:16]} 22. fxg7+ {[%clk 0:02:30]}  Kxg7 {[%clk 0:01:16]} 23. Rxb7+ {[%clk 0:02:30]}  Kh8 {[%clk 0:01:16]} 24. Qxh6+ {[%clk 0:02:30]} 1-0


[Site "https://www.chess.com"]

[Event "Titled Tuesday Blitz May 25 2021"]
[White "Asis Gargatagli, Hipolito"]
[Black "Tejedor Fuente, Enrique"]
[WhiteFideId "2260735"]
[BlackFideId "2299100"]
[WhiteElo "2557"]
[BlackElo "2535"]
[Result "0-1"]
[Round "09"]
[TimeControl "180+1"]
[Date "2021.05.25"]
[WhiteClock "0:00:02"]
[BlackClock "0:00:02"]

1. e4 {[%clk 0:03:00]}  c5 {[%clk 0:02:59]} 2. Nf3 {[%clk 0:03:00]}  g6 {[%clk 0:02:52]} 3. d4 {[%clk 0:02:56]}  cxd4 {[%clk 0:02:53]} 4. Nxd4 {[%clk 0:02:57]}  Bg7 {[%clk 0:02:53]} 5. c4 {[%clk 0:02:58]}  Nc6 {[%clk 0:02:54]} 6. Be3 {[%clk 0:02:58]}  d6 {[%clk 0:02:40]} 7. Nc3 {[%clk 0:02:58]}  Nf6 {[%clk 0:02:40]} 8. Be2 {[%clk 0:02:58]}  O-O {[%clk 0:02:39]} 9. f3 {[%clk 0:02:58]}  Nxd4 {[%clk 0:02:39]} 10. Bxd4 {[%clk 0:02:58]}  Bd7 {[%clk 0:02:39]} 11. Qd2 {[%clk 0:02:57]}  a5 {[%clk 0:02:39]} 12. O-O-O {[%clk 0:02:57]}  Bc6 {[%clk 0:02:35]} 13. h4 {[%clk 0:02:56]}  a4 {[%clk 0:02:23]} 14. h5 {[%clk 0:02:53]}  a3 {[%clk 0:02:22]} 15. b3 {[%clk 0:02:53]}  Qa5 {[%clk 0:02:17]} 16. hxg6 {[%clk 0:02:37]}  fxg6 {[%clk 0:02:12]} 17. Kb1 {[%clk 0:02:30]}  Nh5 {[%clk 0:02:01]} 18. Bxg7 {[%clk 0:02:22]}  Kxg7 {[%clk 0:02:02]} 19. Rh4 {[%clk 0:01:36]}  Rf7 {[%clk 0:01:48]} 20. Rdh1 {[%clk 0:01:28]}  Rh8 {[%clk 0:01:43]} 21. Rxh5 {[%clk 0:00:55]}  gxh5 {[%clk 0:01:40]} 22. f4 {[%clk 0:00:56]}  Rxf4 {[%clk 0:00:27]} 23. Rxh5 {[%clk 0:00:46]}  Bxe4+ {[%clk 0:00:24]} 24. Kc1 {[%clk 0:00:30]}  Rf5 {[%clk 0:00:02]} 25. Qh6+ {[%clk 0:00:04]}  Kf7 {[%clk 0:00:02]} 26. Nxe4 {[%clk 0:00:05]}  Rxh5 {[%clk 0:00:01]} 27. Bxh5+ {[%clk 0:00:05]}  Kg8 {[%clk 0:00:01]} 28. Qg5+ {[%clk 0:00:03]}  Qxg5+ {[%clk 0:00:01]} 29. Nxg5 {[%clk 0:00:02]}  Kg7 {[%clk 0:00:02]} 0-1


[Site "https://www.chess.com"]

[Event "Titled Tuesday Blitz May 25 2021"]
[White "Badelka, Olga"]
[Black "Maksimenko, Viktor"]
[WhiteFideId "13509926"]
[BlackFideId "13710478"]
[WhiteElo "2181"]
[BlackElo "2269"]
[Result "0-1"]
[Round "09"]
[TimeControl "180+1"]
[Date "2021.05.25"]
[WhiteClock "0:00:09"]
[BlackClock "0:00:36"]

1. c4 {[%clk 0:03:00]}  e5 {[%clk 0:02:55]} 2. g3 {[%clk 0:03:00]}  c6 {[%clk 0:02:52]} 3. d4 {[%clk 0:02:53]}  e4 {[%clk 0:02:49]} 4. d5 {[%clk 0:02:50]}  Nf6 {[%clk 0:02:45]} 5. a3 {[%clk 0:02:48]}  cxd5 {[%clk 0:02:43]} 6. cxd5 {[%clk 0:02:48]}  Bd6 {[%clk 0:02:42]} 7. Nc3 {[%clk 0:02:46]}  O-O {[%clk 0:02:41]} 8. Bg2 {[%clk 0:02:46]}  Re8 {[%clk 0:02:36]} 9. Bg5 {[%clk 0:02:42]}  e3 {[%clk 0:01:56]} 10. Bxe3 {[%clk 0:02:39]}  Rxe3 {[%clk 0:01:56]} 11. fxe3 {[%clk 0:02:40]}  Ng4 {[%clk 0:01:57]} 12. Qd3 {[%clk 0:02:38]}  Bc5 {[%clk 0:01:53]} 13. Bf3 {[%clk 0:02:30]}  Ne5 {[%clk 0:01:50]} 14. Qe4 {[%clk 0:02:26]}  d6 {[%clk 0:01:50]} 15. Bg2 {[%clk 0:02:13]}  Nbd7 {[%clk 0:01:31]} 16. Nf3 {[%clk 0:02:12]}  Nf6 {[%clk 0:01:31]} 17. Qh4 {[%clk 0:02:12]}  Neg4 {[%clk 0:01:28]} 18. Nd1 {[%clk 0:02:07]}  Qb6 {[%clk 0:01:17]} 19. O-O {[%clk 0:01:47]}  h6 {[%clk 0:01:00]} 20. Kh1 {[%clk 0:01:28]}  Bxe3 {[%clk 0:00:49]} 21. Nxe3 {[%clk 0:01:27]}  Qxe3 {[%clk 0:00:50]} 22. h3 {[%clk 0:00:16]}  g5 {[%clk 0:00:46]} 23. hxg4 {[%clk 0:00:16]}  gxh4 {[%clk 0:00:44]} 24. Nxh4 {[%clk 0:00:16]}  Qxg3 {[%clk 0:00:38]} 25. Nf5 {[%clk 0:00:10]}  Bxf5 {[%clk 0:00:37]} 26. Rxf5 {[%clk 0:00:09]}  Nxg4 {[%clk 0:00:36]} 0-1


[Site "https://www.chess.com"]

[Event "Titled Tuesday Blitz May 25 2021"]
[White "Dang, Hoang Son"]
[Black "Tsyhanchuk_Stanislav"]
[WhiteFideId "12402435"]
[WhiteElo "2713"]
[BlackElo "2477"]
[Result "1-0"]
[Round "09"]
[TimeControl "180+1"]
[Date "2021.05.25"]
[WhiteClock "0:00:35"]
[BlackClock "0:00:01"]

1. d4 {[%clk 0:03:00]}  Nf6 {[%clk 0:03:00]} 2. c4 {[%clk 0:03:00]}  g6 {[%clk 0:03:01]} 3. Nf3 {[%clk 0:03:00]}  Bg7 {[%clk 0:03:01]} 4. g3 {[%clk 0:03:00]}  O-O {[%clk 0:03:02]} 5. Bg2 {[%clk 0:03:01]}  d6 {[%clk 0:03:03]} 6. O-O {[%clk 0:03:02]}  Nc6 {[%clk 0:03:04]} 7. Nc3 {[%clk 0:03:03]}  a6 {[%clk 0:03:04]} 8. b3 {[%clk 0:03:02]}  Rb8 {[%clk 0:03:04]} 9. Bb2 {[%clk 0:03:02]}  b5 {[%clk 0:03:05]} 10. cxb5 {[%clk 0:03:03]}  axb5 {[%clk 0:03:06]} 11. Rc1 {[%clk 0:03:04]}  Bd7 {[%clk 0:03:06]} 12. d5 {[%clk 0:03:03]}  Na5 {[%clk 0:03:06]} 13. Qc2 {[%clk 0:02:50]}  c6 {[%clk 0:03:05]} 14. Nd4 {[%clk 0:02:42]}  cxd5 {[%clk 0:03:03]} 15. Nxd5 {[%clk 0:02:42]}  Nxd5 {[%clk 0:03:03]} 16. Bxd5 {[%clk 0:02:43]}  e6 {[%clk 0:03:00]} 17. Bg2 {[%clk 0:02:41]}  d5 {[%clk 0:02:58]} 18. Qd2 {[%clk 0:02:35]}  Nb7 {[%clk 0:02:24]} 19. Nc6 {[%clk 0:01:48]}  Bxc6 {[%clk 0:02:24]} 20. Bxg7 {[%clk 0:01:48]}  Kxg7 {[%clk 0:02:24]} 21. Rxc6 {[%clk 0:01:48]}  Nd6 {[%clk 0:01:09]} 22. Qb4 {[%clk 0:01:40]}  Nf5 {[%clk 0:01:05]} 23. Rfc1 {[%clk 0:01:38]}  Qf6 {[%clk 0:00:59]} 24. Bxd5 {[%clk 0:01:34]}  Qd4 {[%clk 0:00:56]} 25. Qxd4+ {[%clk 0:01:13]}  Nxd4 {[%clk 0:00:57]} 26. Bf3 {[%clk 0:01:11]}  Nxc6 {[%clk 0:00:56]} 27. Rxc6 {[%clk 0:01:12]}  b4 {[%clk 0:00:57]} 28. Ra6 {[%clk 0:01:09]}  Rfc8 {[%clk 0:00:47]} 29. Be4 {[%clk 0:01:07]}  f5 {[%clk 0:00:44]} 30. Bd3 {[%clk 0:01:07]}  e5 {[%clk 0:00:44]} 31. Bc4 {[%clk 0:01:07]}  Rc7 {[%clk 0:00:40]} 32. f3 {[%clk 0:01:05]}  h5 {[%clk 0:00:35]} 33. Kf2 {[%clk 0:01:04]}  Rd7 {[%clk 0:00:34]} 34. Re6 {[%clk 0:01:00]}  Rd2 {[%clk 0:00:33]} 35. Rxe5 {[%clk 0:00:58]}  Rxa2 {[%clk 0:00:33]} 36. Re7+ {[%clk 0:00:58]}  Kh6 {[%clk 0:00:31]} 37. h4 {[%clk 0:00:55]}  Rc2 {[%clk 0:00:25]} 38. Rd7 {[%clk 0:00:53]}  Rc8 {[%clk 0:00:17]} 39. Ke3 {[%clk 0:00:43]}  Rc3+ {[%clk 0:00:15]} 40. Kf4 {[%clk 0:00:43]}  R8xc4+ {[%clk 0:00:12]} 41. bxc4 {[%clk 0:00:43]}  Rxc4+ {[%clk 0:00:12]} 42. e4 {[%clk 0:00:41]}  fxe4 {[%clk 0:00:10]} 43. fxe4 {[%clk 0:00:42]}  b3 {[%clk 0:00:05]} 44. Rb7 {[%clk 0:00:42]}  Rc3 {[%clk 0:00:03]} 45. e5 {[%clk 0:00:43]}  Rc4+ {[%clk 0:00:04]} 46. Kf3 {[%clk 0:00:43]}  Rc3+ {[%clk 0:00:04]} 47. Kf2 {[%clk 0:00:41]}  Rc2+ {[%clk 0:00:04]} 48. Ke3 {[%clk 0:00:37]}  Rc3+ {[%clk 0:00:04]} 49. Kd4 {[%clk 0:00:36]}  Rxg3 {[%clk 0:00:04]} 50. e6 {[%clk 0:00:36]}  Rg4+ {[%clk 0:00:02]} 51. Kd3 {[%clk 0:00:37]}  Rg3+ {[%clk 0:00:01]} 52. Ke2 {[%clk 0:00:36]}  b2 {[%clk 0:00:01]} 53. e7 {[%clk 0:00:35]} 1-0


[Site "https://www.chess.com"]

[Event "Titled Tuesday Blitz May 25 2021"]
[White "Djordjevic, Vuk"]
[Black "Triapishko, Alexandr"]
[WhiteFideId "902098"]
[BlackFideId "14122286"]
[WhiteElo "2463"]
[BlackElo "2490"]
[Result "0-1"]
[Round "09"]
[TimeControl "180+1"]
[Date "2021.05.25"]
[WhiteClock "0:00:05"]
[BlackClock "0:00:07"]

1. d4 {[%clk 0:03:00]}  Nf6 {[%clk 0:02:53]} 2. Bg5 {[%clk 0:03:00]}  d5 {[%clk 0:02:52]} 3. Bxf6 {[%clk 0:02:59]}  gxf6 {[%clk 0:02:53]} 4. e3 {[%clk 0:02:59]}  c5 {[%clk 0:02:50]} 5. dxc5 {[%clk 0:02:59]}  Nc6 {[%clk 0:02:43]} 6. Nf3 {[%clk 0:02:55]}  e5 {[%clk 0:02:39]} 7. c4 {[%clk 0:02:55]}  d4 {[%clk 0:02:14]} 8. exd4 {[%clk 0:02:56]}  e4 {[%clk 0:02:14]} 9. Nfd2 {[%clk 0:02:56]}  Qxd4 {[%clk 0:02:04]} 10. Nc3 {[%clk 0:02:55]}  f5 {[%clk 0:01:58]} 11. Nb3 {[%clk 0:02:29]}  Qe5 {[%clk 0:01:51]} 12. Be2 {[%clk 0:02:28]}  Be6 {[%clk 0:01:44]} 13. O-O {[%clk 0:02:24]}  f4 {[%clk 0:01:43]} 14. Bg4 {[%clk 0:01:48]}  Rd8 {[%clk 0:01:30]} 15. Qe2 {[%clk 0:01:48]}  f5 {[%clk 0:01:11]} 16. Bh5+ {[%clk 0:01:44]}  Ke7 {[%clk 0:01:11]} 17. Rfd1 {[%clk 0:01:18]}  Bg7 {[%clk 0:01:08]} 18. Kh1 {[%clk 0:00:58]}  f3 {[%clk 0:00:49]} 19. gxf3 {[%clk 0:00:55]}  Qf4 {[%clk 0:00:49]} 20. fxe4 {[%clk 0:00:48]}  Be5 {[%clk 0:00:47]} 21. f3 {[%clk 0:00:43]}  Bxc4 {[%clk 0:00:37]} 22. Qf2 {[%clk 0:00:28]}  Qg5 {[%clk 0:00:16]} 23. f4 {[%clk 0:00:27]}  Qxf4 {[%clk 0:00:05]} 24. Qxf4 {[%clk 0:00:26]}  Bxf4 {[%clk 0:00:06]} 25. Nd5+ {[%clk 0:00:27]}  Bxd5 {[%clk 0:00:05]} 26. exd5 {[%clk 0:00:27]}  Ne5 {[%clk 0:00:06]} 27. d6+ {[%clk 0:00:25]}  Kf6 {[%clk 0:00:06]} 28. Rd5 {[%clk 0:00:23]}  Rhg8 {[%clk 0:00:06]} 29. Rf1 {[%clk 0:00:22]}  Be3 {[%clk 0:00:04]} 30. Nd4 {[%clk 0:00:08]}  f4 {[%clk 0:00:02]} 31. Ne2 {[%clk 0:00:07]}  Ke6 {[%clk 0:00:01]} 32. Rdd1 {[%clk 0:00:06]}  Rg5 {[%clk 0:00:02]} 33. Bf3 {[%clk 0:00:06]}  Nxf3 {[%clk 0:00:02]} 34. Rxf3 {[%clk 0:00:06]}  Rxc5 {[%clk 0:00:02]} 35. Nxf4+ {[%clk 0:00:04]}  Bxf4 {[%clk 0:00:03]} 36. Rxf4 {[%clk 0:00:04]}  Rxd6 {[%clk 0:00:04]} 37. Re4+ {[%clk 0:00:05]}  Re5 {[%clk 0:00:03]} 38. Rxe5+ {[%clk 0:00:05]}  Kxe5 {[%clk 0:00:04]} 39. Re1+ {[%clk 0:00:05]}  Kd5 {[%clk 0:00:03]} 40. Re7 {[%clk 0:00:05]}  Rb6 {[%clk 0:00:04]} 41. b3 {[%clk 0:00:05]}  h6 {[%clk 0:00:04]} 42. Kg2 {[%clk 0:00:06]}  Kc5 {[%clk 0:00:04]} 43. Kf3 {[%clk 0:00:05]}  Kb4 {[%clk 0:00:05]} 44. Re4+ {[%clk 0:00:06]}  Kc3 {[%clk 0:00:05]} 45. Ke3 {[%clk 0:00:05]}  Ra6 {[%clk 0:00:04]} 46. Rc4+ {[%clk 0:00:04]}  Kb2 {[%clk 0:00:04]} 47. Rb4 {[%clk 0:00:05]}  b6 {[%clk 0:00:04]} 48. a4 {[%clk 0:00:04]}  Ra5 {[%clk 0:00:04]} 49. Kf3 {[%clk 0:00:04]}  Kc3 {[%clk 0:00:04]} 50. Rh4 {[%clk 0:00:04]}  Kxb3 {[%clk 0:00:04]} 51. Rxh6 {[%clk 0:00:04]}  Rxa4 {[%clk 0:00:04]} 52. h4 {[%clk 0:00:04]}  b5 {[%clk 0:00:03]} 53. h5 {[%clk 0:00:04]}  b4 {[%clk 0:00:04]} 54. Rh7 {[%clk 0:00:05]}  Ra1 {[%clk 0:00:03]} 55. Kg2 {[%clk 0:00:05]}  a5 {[%clk 0:00:03]} 56. h6 {[%clk 0:00:05]}  Ra2+ {[%clk 0:00:04]} 57. Kg3 {[%clk 0:00:05]}  Ra1 {[%clk 0:00:04]} 58. Kg2 {[%clk 0:00:05]}  Rc1 {[%clk 0:00:04]} 59. Ra7 {[%clk 0:00:02]}  Rc6 {[%clk 0:00:04]} 60. h7 {[%clk 0:00:01]}  Rh6 {[%clk 0:00:04]} 61. Rxa5 {[%clk 0:00:01]}  Rxh7 {[%clk 0:00:04]} 62. Kf3 {[%clk 0:00:02]}  Re7 {[%clk 0:00:04]} 63. Rb5 {[%clk 0:00:02]}  Ka3 {[%clk 0:00:05]} 64. Rb6 {[%clk 0:00:02]}  b3 {[%clk 0:00:05]} 65. Ra6+ {[%clk 0:00:03]}  Kb2 {[%clk 0:00:06]} 66. Rb6 {[%clk 0:00:04]}  Ka2 {[%clk 0:00:06]} 67. Ra6+ {[%clk 0:00:04]}  Kb1 {[%clk 0:00:07]} 68. Kf2 {[%clk 0:00:04]}  b2 {[%clk 0:00:07]} 69. Rc6 {[%clk 0:00:05]}  Ra7 {[%clk 0:00:07]} 0-1


[Site "https://www.chess.com"]